Cogmind - Beta 16 @@@ ROGUE MODE // 2025.12.29 @ 22:57:38 Player: skilledspacepolice Result: Destroyed by G-47 Trooper with Particle Gun Performance ------------- Evolutions (3) 1500 Regions Visited (6) 1200 Robots Destroyed (38) 190 Value Destroyed (1477) 1477 Prototype IDs (25) 500 Alien Tech Used (0) 0 Bonus (333) 333 TOTAL SCORE: 5200 Bonus ------- Follower Combat Kills 33 Aligned with FarCom 300 Cogmind --------- Core Integrity 0/700 Matter 290/300 Energy 100/100 System Corruption 2% Temperature Cool (9) Movement Core (50) Location -7/Factory Parts ------- > --- POWER (1) -------- (None) > --- PROPULSION (4) --- (None) > --- UTILITY (6) ------ Signal Interpreter Improved Targeting Computer Hacking Suite > --- WEAPON (2) ------- (None) > --- INVENTORY (5) ---- Small Storage Unit Experimental Sensor Array Recoil Stabilizer Reactive Plating Reactive Plating Peak State ------------ > --- POWER ------------ Improved Deuterium Engine > --- PROPULSION ------- Airjet Airjet Airjet Airjet > --- UTILITY ---------- Improved Heat Sink Small Storage Unit Signal Interpreter Targeting Computer Improved Targeting Computer Hacking Suite > --- WEAPON ----------- Pulse Rifle Pulse Rifle > --- INVENTORY -------- Small Storage Unit Experimental Sensor Array Recoil Stabilizer Reactive Plating Reactive Plating Pulse Rifle Pulse Rifle [Rating: 35] Favorites ----------- Power Improved Ion Engine Engine Improved Ion Engine Power Core Light Nuclear Core Propulsion Titanium Leg Leg Titanium Leg Wheel Armored Huge Wheel Hover Unit Airjet Utility Small Storage Unit Device Cloak of Protection Storage Small Storage Unit Processor Signal Interpreter Hackware Hacking Suite Protection Utility Shielding Weapon Light Cannon Energy Gun Pulse Rifle Ballistic Gun Assault Rifle Ballistic Cannon Light Cannon Special Weapon Mining Laser Build | -11 -10 -10 -10 -9 -8 -7 ------- Run | Yrd Mat Min Exi Min Mat Fac Slots Evolved 6 | . . . . . 4 2 Power . | . . . . . . . Propulsion 2 | . . . . . . 2 Utility 4 | . . . . . 4 . Weapon . | . . . . . . . Parts Attached 42 | 6 2 5 1 2 14 12 Power 8 | 1 1 1 . . 2 3 Engine 6 | 1 1 1 . . 1 2 Core 2 | . . . . . 1 1 Reactor . | . . . . . . . Propulsion 12 | 2 . . . 2 3 5 Treads . | . . . . . . . Leg 5 | 2 . . . . 3 . Wheel 2 | . . . . 2 . . Hover 5 | . . . . . . 5 Flight . | . . . . . . . Utility 11 | 1 1 . 1 . 7 1 Device 2 | . . . . . 1 1 Storage 2 | 1 . . 1 . . . Processor 3 | . . . . . 3 . Hackware 1 | . . . . . 1 . Protection 3 | . 1 . . . 2 . Artifact . | . . . . . . . Weapon 11 | 2 . 4 . . 2 3 Energy Gun 4 | . . . . . 2 2 Energy Cannon . | . . . . . . . Ballistic Gun 3 | 2 . . . . . 1 Ballistic Cannon 2 | . . 2 . . . . Launcher . | . . . . . . . Special Weapon 2 | . . 2 . . . . Impact Weapon . | . . . . . . . Slashing Weapon . | . . . . . . . Piercing Weapon . | . . . . . . . Special Melee Weapon . | . . . . . . . Unidentified Prototypes . | . . . . . . . Parts Lost 22 | . . 5 . . 2 15 Power 3 | . . 1 . . . 2 Propulsion 8 | . . 2 . . 1 5 Utility 4 | . . . . . 1 3 Weapon 7 | . . 2 . . . 5 Highest Loss Streak 8 | . . 5 . . 1 8 To Critical Strikes . | . . . . . . . Average Backups 5 | 2 1 3 4 5 6 6 Power . | . 1 . . . . . Propulsion . | . . . . . . . Utility 3 | . . 1 3 5 4 5 Weapon 1 | . . 1 1 . 1 1 Tool/Special . | . . . . . . . Unused Backups 6 | . 1 . . 1 1 3 Power 1 | . 1 . . . . . Propulsion . | . . . . . . . Utility 3 | . . . . . . 3 Weapon 2 | . . . . 1 1 . Tool/Special . | . . . . . . . Average Slot Usage (%) 82 | . 89 75 71 83 94 80 Engine 10 | . 14 11 14 14 7 4 Leg 6 | . 28 8 . . 13 2 Wheel 2 | . . . . 12 1 . Hover 2 | . . . . . . 15 Device 2 | . . . . . 6 5 Storage 11 | . 14 14 14 14 9 6 Processor 9 | . . . . . 20 21 Hackware 1 | . . . . . . 7 Protection 12 | . 4 14 14 14 15 1 Energy Gun 3 | . . . . . 5 10 Ballistic Gun 1 | . 28 4 . . . 1 Ballistic Cannon 16 | . . 14 28 28 12 . Peak Build Rating 35 | 6 8 8 7 16 33 35 Average Rating 16 | 4 7 6 6 10 26 26 On Entrance 10 | . 6 8 6 7 16 27 Avg Prop Armor Cover (%) . | . . . . . . . Naked Turns . | . . . . . . . Heaviest Build 37 | 14 17 19 19 19 37 28 Greatest Support 34 | 20 20 20 3 28 34 34 Greatest Overweight (x) 9 | 3 . 6 6 6 9 6 Average Overweight (x) 1 | . . 3 6 . . . Largest Inventory Capacity 8 | 8 8 8 8 8 8 8 Average Capacity 7 | 7 8 8 8 8 8 7 Most Carried 8 | 5 4 6 5 8 8 8 Average Carried 5 | 1 1 3 4 5 6 6 Final Capacity 8 | 8 8 8 8 8 8 5 Final Carried 7 | 1 4 3 5 7 7 5 Class Distribution -------------------- 100% | Mutant Dominant Class ---------------- Mutant | -10/Materials Mutant | -10/Mines Mutant | -10/Exiles Mutant | -9/Mines Mutant | -8/Materials Mutant | -7/Factory Resources | -11 -10 -10 -10 -9 -8 -7 ----------- Run | Yrd Mat Min Exi Min Mat Fac Matter Collected 1173 | 201 130 52 . 102 539 149 Remotely . | . . . . . . . Salvage Created 1315 | . 143 52 . . 647 473 Parts 51 | . 6 3 . . 27 15 Haulers Intercepted 1 | . . . . . 1 . Recyclers Shooed . | . . . . . . . Parts Field Recycled . | . . . . . . . Retrieved Matter . | . . . . . . . Parts Self-Destructed . | . . . . . . . Prevented . | . . . . . . . Parts Restored . | . . . . . . . Kills | -11 -10 -10 -10 -9 -8 -7 ------- Run | Yrd Mat Min Exi Min Mat Fac Combat Hostiles Destroyed 33 | . 3 2 . . 17 11 Guns 22 | . 3 2 . . 7 10 Cannons 10 | . . . . . 10 . Classes Destroyed 11 | . 2 1 . . 5 3 Worker 1 | . . . . . 1 . Builder 1 | . 1 . . . . . Hauler 1 | . . . . . 1 . Operator 1 | . . . . . . 1 Watcher 1 | . . . . . 1 . Swarmer 3 | . . . . . 3 . Grunt 23 | . 3 . . . 12 8 Brawler 1 | . . . . . . 1 Duelist 2 | . . . . . 1 1 Sentry 3 | . . 2 . . 1 . Programmer 1 | . . . . . . 1 Best Kill Streak 3 | . 2 2 . . 3 3 Combat Bots Only 3 | . 1 2 . . 3 3 Max Kills in Single Turn 1 | . 1 1 . . 1 1 Gunslinging . | . . . . . . . Exploded . | . . . . . . . Melee . | . . . . . . . Uniques/NPCs Destroyed . | . . . . . . . Combat | -11 -10 -10 -10 -9 -8 -7 -------- Run | Yrd Mat Min Exi Min Mat Fac Hostile Shots Fired 302 | . 22 42 . . 92 146 Missed 75 | . 8 5 . . 23 39 Hits 227 | . 14 37 . . 69 107 Melee 11 | . . . . . 3 8 Projectile 216 | . 14 37 . . 66 99 Critical Strikes 13 | . . 1 . . 4 8 Actively Blocked 1 | . . . . . 1 . Damage Taken 3542 | . 203 526 . . 1062 1751 Core 964 | . 46 141 . . 64 713 Absorbed by Shields . | . . . . . . . Redirected to Shielding 58 | . . 3 . . 55 . Ignored by Resistances 22 | . . . . . 22 . Regen/Repaired (Parts) 91 | . . . . . 91 . Core Remaining (%) 71 | 100 . . . 25 88 . Volleys Fired 131 | . 14 10 . . 63 44 Largest 2 | . 2 2 . . 2 2 Hottest 200 | . 40 200 . . 126 126 Shots Fired 250 | . 28 18 . . 124 80 Gun 160 | . 28 12 . . 40 80 Cannon 84 | . . . . . 84 . Launcher . | . . . . . . . Special 6 | . . 6 . . . . Kinetic 139 | . 28 12 . . 84 15 Thermal 111 | . . 6 . . 40 65 Explosive . | . . . . . . . Electromagnetic . | . . . . . . . Robot Hit Streak 28 | . 5 6 . . 17 28 Robot Miss Streak 4 | . 2 1 . . 3 4 Penetration Max . | . . . . . . . Secondary Targets 2 | . . . . . 2 . Max Gunslinging Chain 1 | . . . . . 1 . Shots Hit Robots 188 | . 17 12 . . 89 70 Core Hits 94 | . 8 4 . . 38 44 Critical Kills . | . . . . . . . Critical Parts Destroyed . | . . . . . . . Critical Strikes 6 | . . . . . 3 3 Burn 5 | . . . . . 2 3 Blast 1 | . . . . . 1 . Melee Attacks . | . . . . . . . Impact . | . . . . . . . Slashing . | . . . . . . . Piercing . | . . . . . . . Sneak Attacks . | . . . . . . . Combat Hostiles . | . . . . . . . Follow-up Attacks . | . . . . . . . Damage Inflicted 3303 | . 215 195 . . 1596 1297 Guns 2263 | . 215 123 . . 628 1297 Cannons 968 | . . . . . 968 . Explosions . | . . . . . . . Melee . | . . . . . . . Ramming . | . . . . . . . Kinetic 1639 | . 215 123 . . 968 333 Thermal 1664 | . . 72 . . 628 964 Explosive . | . . . . . . . Electromagnetic . | . . . . . . . Impact . | . . . . . . . Slashing . | . . . . . . . Piercing . | . . . . . . . Highest Corruption 2 | . . . . . . 2 Average Corruption 2 | . . . . . . 2 Corruption Purged . | . . . . . . . Corruption Blocked . | . . . . . . . Effects 1 | . . . . . . 1 Matter Fused 1 | . . . . . . 1 Overload Shots . | . . . . . . . Overflow Damage 1 | . . . . . 1 . Projectiles 1 | . . . . . 1 . Explosions . | . . . . . . . Melee . | . . . . . . . Knockbacks 13 | . . . . . 13 . Impact . | . . . . . . . Kinetic 13 | . . . . . 13 . Secondary . | . . . . . . . Self-Inflicted Damage . | . . . . . . . Shots . | . . . . . . . Rammed . | . . . . . . . Targets Rammed . | . . . . . . . Kicked . | . . . . . . . Crushed . | . . . . . . . Highest Temperature 466 | . 3 132 . . 466 315 Average Temperature 97 | . 3 62 . . 115 81 Received Heat Transfer 1575 | . 117 180 . . 540 738 Effects 6 | . . . . . 6 . Shutdowns 1 | . . . . . 1 . Interference 3 | . . . . . 3 . Matter Decay 1 | . . . . . 1 . Damage (minor) 1 | . . . . . 1 . Siege Activations . | . . . . . . . Martial Activations . | . . . . . . . Shielding Activations . | . . . . . . . Robots Disrupted . | . . . . . . . Combat Hostiles . | . . . . . . . Robots Corrupted . | . . . . . . . Combat Hostiles . | . . . . . . . Parts Fried . | . . . . . . . Impact Corruptions . | . . . . . . . Robots Melted 1 | . . . . . . 1 Combat Hostiles 1 | . . . . . . 1 Parts Melted 5 | . . . . . 3 2 Heat Transferred 3961 | . . 150 . . 1517 2294 Parts Sabotaged . | . . . . . . . Parts Stolen . | . . . . . . . Parts Stripped . | . . . . . . . Power Chain Reactions . | . . . . . . . Alert | -11 -10 -10 -10 -9 -8 -7 ------- Run | Yrd Mat Min Exi Min Mat Fac Maximum Alert Level . | . . . . . . . Low Security (%) 100 | 100 100 100 . 100 100 100 Level 1 . | . . . . . . . Level 2 . | . . . . . . . Level 3 . | . . . . . . . Level 4 . | . . . . . . . Level 5 . | . . . . . . . High Security . | . . . . . . . Max Security . | . . . . . . . Peak Influence 172 | . 45 40 . . 172 126 Initial 65 | . . 9 . . . 65 Average 36 | . 17 6 . . 49 58 Influence Increases 1037 | . 75 40 . . 527 395 Destroy 0b10 Robot/C 680 | . 60 40 . . 360 220 Destroy 0b10 Robot/NC 25 | . 5 . . . 15 5 Destroy Leader 134 | . 10 . . . 74 50 Allied During Kill 6 | . . . . . 6 . Trap Triggered on 0b10 10 | . . . . . 10 . Successful Hack 28 | . . . . . 14 14 Destroy Structure 4 | . . . . . 3 1 Lose Combat Pursuer 150 | . . . . . 45 105 Influence Decreases 981 | . 50 65 . . 383 483 Entered New Map 95 | . . 16 . . . 79 Time Decay 748 | . 50 49 . . 363 286 Lost Part 138 | . . . . . 20 118 Squads Dispatched 12 | . . . . . 5 7 Investigation 4 | . . . . . 3 1 Extermination 1 | . . . . . . 1 Reinforcement 4 | . . . . . 2 2 Assault . | . . . . . . . Garrison 3 | . . . . . . 3 Intercept . | . . . . . . . Searches Triggered . | . . . . . . . Construction Impeded . | . . . . . . . Haulers Reinforced . | . . . . . . . Active Scanning Responses . | . . . . . . . Cargo Convoy Interrupts . | . . . . . . . Stealth | -11 -10 -10 -10 -9 -8 -7 --------- Run | Yrd Mat Min Exi Min Mat Fac Distress Signals 6 | . 1 . . . 3 2 Communications Jammed . | . . . . . . . Distress Signals . | . . . . . . . Times Spotted 65 | . 4 2 . . 28 31 Peak Tracking Total 9 | . 3 2 . . 6 9 Tactical Retreats 2 | . . . . . 1 1 Traps | -11 -10 -10 -10 -9 -8 -7 ------- Run | Yrd Mat Min Exi Min Mat Fac Traps Triggered 3 | . . . . 1 1 1 Indirectly . | . . . . . . . Trap Hack Attempts . | . . . . . . . Triggered . | . . . . . . . Disarmed 6 | . 6 . . . . . Reprogrammed 1 | . . . . . 1 . Reused 1 | . . . . . 1 . Traps Extracted . | . . . . . . . Installed . | . . . . . . . Triggered 1 | . . . . . 1 . Machines | -11 -10 -10 -10 -9 -8 -7 ---------- Run | Yrd Mat Min Exi Min Mat Fac Machines Disabled . | . . . . . . . Max in Single Turn . | . . . . . . . Garrison Access 2 | . . . . . 1 1 Machines Repaired . | . . . . . . . Machines Dismantled . | . . . . . . . Machines Sabotaged . | . . . . . . . Overloaded Fab Kills . | . . . . . . . Hacking | -11 -10 -10 -10 -9 -8 -7 --------- Run | Yrd Mat Min Exi Min Mat Fac Machines Accessed 11 | . 1 . 1 1 6 2 Terminals 5 | . 1 . . . 4 . Fabricators . | . . . . . . . Repair Stations 2 | . . . . . 1 1 Recycling Units . | . . . . . . . Scanalyzers . | . . . . . . . Garrison Access 2 | . . . . . 1 1 Total Hacks 25 | . 1 . 1 1 17 5 Successful 15 | . 1 . 1 1 9 3 Failed 10 | . . . . . 8 2 Catastrophic 1 | . . . . . 1 . Database Lockouts . | . . . . . . . Manual 1 | . . . 1 . . . Terminals 10 | . 1 . . . 9 . Fabricators . | . . . . . . . Repair Stations 7 | . . . . . 4 3 Recycling Units . | . . . . . . . Scanalyzers . | . . . . . . . Garrison Access 6 | . . . . . 4 2 Terminal Hacks 8 | . 1 . 1 1 5 . Record 1 | . . . . . 1 . Prototype ID Bank 1 | . . . . . 1 . Open Door 1 | . . . . 1 . . Scanalyzer Index 1 | . . . . . 1 . Disarm Traps 1 | . 1 . . . . . Reprogram Traps 1 | . . . . . 1 . Zone Layout 1 | . . . . . 1 . Proto ID Catalog 1 | . . . 1 . . . Fabricator Hacks . | . . . . . . . Repair Station Hacks 4 | . . . . . 3 1 Scan Component 3 | . . . . . 2 1 Repair 1 | . . . . . 1 . Recycling Unit Hacks . | . . . . . . . Scanalyzer . | . . . . . . . Garrison Access Hacks 3 | . . . . . 1 2 Seal Access 2 | . . . . . 1 1 Coupler Status 1 | . . . . . . 1 Unauthorized Hacks . | . . . . . . . Terminals . | . . . . . . . Fabricators . | . . . . . . . Repair Stations . | . . . . . . . Recycling Units . | . . . . . . . Scanalyzers . | . . . . . . . Garrison Access . | . . . . . . . Data Cores Recovered . | . . . . . . . Used . | . . . . . . . Hacking Detections 7 | . . . . . 5 2 Full Trace Events 2 | . . . . . 1 1 Feedback Events . | . . . . . . . Feedback Blocked . | . . . . . . . Robot Schematics Acquired . | . . . . . . . Robots Built . | . . . . . . . Authchips . | . . . . . . . Time . | . . . . . . . Total Robot Build Rating . | . . . . . . . Part Schematics Acquired . | . . . . . . . Parts Built . | . . . . . . . Authchips . | . . . . . . . Time . | . . . . . . . Total Part Build Rating . | . . . . . . . Part Studies Acquired . | . . . . . . . Parts Repaired 1 | . . . . . 1 . Time 38 | . . . . . 38 . Parts Recycled . | . . . . . . . Recycled Matter . | . . . . . . . Retrieved Matter . | . . . . . . . Retrieved Components . | . . . . . . . Parts Scanalyzed . | . . . . . . . Part Schematics Acquired . | . . . . . . . Parts Damaged . | . . . . . . . Bothacking | -11 -10 -10 -10 -9 -8 -7 ------------ Run | Yrd Mat Min Exi Min Mat Fac Used RIF Installer . | . . . . . . . Robots Hacked . | . . . . . . . Non-combat . | . . . . . . . Combat . | . . . . . . . Robot Hacks Applied . | . . . . . . . Relay Couplers Released . | . . . . . . . Fabnet Peak Effective % . | . . . . . . . Robots Rewired . | . . . . . . . Allies Hacked . | . . . . . . . Hacks Repelled . | . . . . . . . Allies | -11 -10 -10 -10 -9 -8 -7 -------- Run | Yrd Mat Min Exi Min Mat Fac Total Allies 1 | . . . . 1 . . Largest Group 1 | . . . . 1 1 . Highest-Rated Group 31 | . . . . 31 31 . Highest-Rated Ally 31 | . . . . 31 31 . Total Orders . | . . . . . . . Ally Attacks 5 | . . . . . 5 . Total Damage 40 | . . . . . 40 . Kills 1 | . . . . . 1 . Allies Corrupted . | . . . . . . . Allies Melted . | . . . . . . . Intel | -11 -10 -10 -10 -9 -8 -7 ------- Run | Yrd Mat Min Exi Min Mat Fac Active Infowar (turns) 73 | . . . . . 73 . Cloaking 73 | . . . . . 73 . Robot Analysis Total . | . . . . . . . Derelict Logs Recovered 2 | . . . . 2 . . Drone Launches . | . . . . . . . Drone Recoveries . | . . . . . . . Exploration | -11 -10 -10 -10 -9 -8 -7 ------------- Run | Yrd Mat Min Exi Min Mat Fac Turns Passed 4447 | 59 157 261 1344 558 1404 664 Spaces Moved 1947 | 43 89 85 384 443 550 353 Core 495 | 13 . 49 384 19 1 29 Treads . | . . . . . . . Legs 567 | 30 89 36 . . 351 61 Wheels 622 | . . . . 424 198 . Hover 263 | . . . . . . 263 Flight . | . . . . . . . Fastest Speed 48 | 50 120 120 350 100 100 48 Average Speed 168 | 109 120 240 350 120 137 81 Slowest Speed 500 | 200 120 350 350 350 500 350 Overloaded Moves . | . . . . . . . Propulsion Burnouts . | . . . . . . . Robots Hopped . | . . . . . . . Potential Cave-ins . | . . . . . . . Cave-ins Triggered . | . . . . . . . Exploration Rate (%) 36 | 3 16 11 79 85 53 11 Regions Visited 6 Branch Regions 3 Pre-discovered Areas 1 | . . . . 1 . . Known Exits Taken 1 | . . . . . 1 . Unknown Exits Taken 5 | 1 1 1 1 1 . . Scrap Searched 3 | . . . . 3 . . Spaces Dug . | . . . . . . . Terrain Destroyed . | . . . . . . . Melee . | . . . . . . . Projectile . | . . . . . . . AOE . | . . . . . . . Terrain Rammed . | . . . . . . . Walls Destroyed . | . . . . . . . Machines Disabled . | . . . . . . . Actions | -11 -10 -10 -10 -9 -8 -7 --------- Run | Yrd Mat Min Exi Min Mat Fac Total 2862 | 55 112 115 386 466 1078 650 Wait 674 | . . 6 . 14 423 231 Move 1941 | 42 88 84 383 442 549 353 Hop . | . . . . . . . Pick Up 46 | 7 6 4 2 5 17 5 Fast Attach 6 | . . . . 1 . 5 Attach 41 | 6 2 7 . 2 17 7 Detach 3 | . . 2 . . 1 . Swap 1 | . . . 1 . . . Drop 19 | . 2 2 . 2 8 5 Fire 131 | . 14 10 . . 63 44 Melee . | . . . . . . . Ram . | . . . . . . . Kick . | . . . . . . . Crush . | . . . . . . . Escape Stasis . | . . . . . . . Rewire . | . . . . . . . Trap . | . . . . . . . Miscellaneous . | . . . . . . . Route ------- -11/Scrapyard -10/Materials -10/Mines -10/Exiles -9/Mines (discovered 2 exits: *Mat x2) -8/Materials -7/Factory History --------- Turn | Location | Event 12 | -11/Scrapyard | Discovered new exit (range 15) 60 | -11/Scrapyard | Entered Materials 154 | -10/Materials | Discovered new exit (range 7) 217 | -10/Materials | Entered Mines 223 | -10/Mines | Discovered new exit (range 3) 295 | -10/Mines | Core integrity fell below 50% 314 | -10/Mines | Build established: Mutant 326 | -10/Mines | Lost 5 parts (1p2n2w) 478 | -10/Mines | Entered Exiles 562 | -10/Exiles | Met 8R-AWN 625 | -10/Exiles | Met EX-HEX 720 | -10/Exiles | Met EX-BIN 772 | -10/Exiles | Aligned with FarCom system 776 | -10/Exiles | Given EX-Vault access code 860 | -10/Exiles | Opened EX-Vault 888 | -10/Exiles | Found Cloak of Protection 1057 | -10/Exiles | Warned to stay clear of 0b10 Research branches 1144 | -10/Exiles | Met EX-DEC 1456 | -10/Exiles | Visited The Gauntlet 1784 | -10/Exiles | Discovered new exit (range 10) 1822 | -10/Exiles | Left Exiles lab with Cloak of Protection 1822 | -10/Exiles | Entered Mines 1908 | -9/Mines | Found a damaged Exp. Sensor Array with a note attached 1910 | -9/Mines | Found Prototype Device 1933 | -9/Mines | YI-UF0 nonchalantly dropped a Grenade Launcher on the ground 1945 | -9/Mines | Learned Materials stockpile data 2117 | -9/Mines | Discovered new exit (range 11) 2137 | -9/Mines | Learned location of Recycling (-8) 2248 | -9/Mines | Met a Derelict who couldn't figure out how to use a Trap Extractor 2362 | -9/Mines | Discovered new exit (range 8) 2366 | -9/Mines | Received a Mining Laser from a helpful Derelict 2380 | -9/Mines | Entered Materials 2380 | -8/Materials | Accompanied by 1 ally 2380 | -8/Materials | Evolved 4 slots: Utility x4 3482 | -8/Materials | Repaired Titanium Leg 3730 | -8/Materials | Discovered new exit (range 15) 3782 | -8/Materials | Identified exit to Factory 3784 | -8/Materials | Entered Factory 3784 | -7/Factory | Evolved 2 slots: Propulsion x2 3987 | -7/Factory | Garrison activated, responded to threat 4197 | -7/Factory | Lost 3 parts (2n1w) 4256 | -7/Factory | Lost 4 parts (1p1n2w) 4372 | -7/Factory | Core integrity fell below 50% 4430 | -7/Factory | Core integrity fell below 20% 4448 | -7/Factory | Destroyed by G-47 Trooper with Particle Gun Last Messages --------------- Penetrated by Slug. Pulse Rifle destroyed. Penetrated by Slug. G-47 Trooper destroyed. Penetrated by Slug. Flak Gun destroyed. Penetrated by Slug. Hover Unit destroyed. Acquired 66 matter. W-25 Informer sends out distress signal. Triggered Shock Trap. The floor emits a surge of raw power. System corrupted (+2). Slug penetrates Wall. System corrupted: Matter fused (-9). Sml. Storage Unit destroyed. Penetrated by Slug. Slug penetrates Nuclear Reactor. Penetrated by Slug. Slug penetrates Nuclear Reactor. Map ----- +----------------------------------------------------+ | ??????????# #?????# """ """ #??????? | | ??????????# """"" ! #?????# """ """ #??????? | | ??????????# """"" #?????# #??????? | | ??????????# """ #?????# #??????? | | ??????????# %% #?????# ! #??????? | | ??????????# #??#### % #??????? | | ?? #############/#########T #######/#######+##### | | ?? %% | | ? | | ? | | ^ | | | | % | | ^r w | | ######################/###### ########## | | ?????????????????# ""G"" #?# #????????? | | ?????????????????# "" "" #?# #????????? | | ?????????????????# #?# #????????? | | ?????????????????# #?# #????????? | | ?????????????????# """Y""" #?# #????????? | | ?????????????????# """ """ #?# #????????? | | ?????????????????# """ """ #?# #????????? | | ?????????????????# h #?# #????????? | | ?????????????????# """g""" #?# #????????? | | ?????????????????# """ """ #?# #????????? | | ?????????????????# """@""" #?# #????? ?? | | ?????????????????# g #?# # | | ????????????????########+######## + | | ???????????# # | | ????????????????################# #????????? | | ????????????????????????????????# #????????? | | ????????????????????????????????# #????????? | | ????????????????????????????????# #????????? | | ????????????????????????????????# #????????? | | ????????????????????????????????# #????????? | | ????????????????????????????????# #????????? | | ????????????????????????????????+ +????????? | | ????????????????????????????????# #????????? | | ????????????????????????????????# #????????? | | ????????????????????????????????# #????????? | | ????????????????????????????????+ #????????? | | ?????????????????????????????????###+##+#????????? | | ?????????????????????????????????????????????????? | | ?????????????????????????????????????????????????? | | ?????????????????????????????????????????????????? | | ?????????????????????????????????????????????????? | | ?????????????????????????????????????????????????? | | ?????????????????????????????????????????????????? | | ?????????????????????????????????????????????????? | | ?????????????????????????????????????????????????? | +----------------------------------------------------+ Best States ------------- Heat Dissipation 48 Energy Generation 16 Energy Capacity 290 Matter Stores 300 Matter Capacity 300 Sight Range 16 Terrain Scan Density 10 Cloak Strength 5 Armor Coverage 150 Resistance: KI 20 Utility Shielding 33 Weapon Shielding 33 Evasion (%) 55 Targeting Accuracy 11 Offensive Hacking 10 Item Schematics ----------------- None Robot Schematics ------------------ None Fabricated ------------ Nothing Repaired ---------- Titanium Leg | 37% | -8/Materials Studied --------- None Alien Tech Used ----------------- None Achievements -------------- None Challenges ------------ None Game ------ Seed ArchitectTransmissionSword Manual? 0 Play Time 00:45:39 Cumulative 17.9 hours Start 2025.12.29 @ 22:12:26 End 2025.12.29 @ 22:57:38 Sessions 1 Manual Loads 0 Difficulty Rogue Special Mode None Game No. 23 Rogue 23 Adventurer 0 Explorer 0 Win Type - Total 0 Types 0/0/0/0/0/0/0/0/0/0 Lore% 27 Gallery% 18 Achievement% 14 Wizard Run 0 Options --------- Layout 1 ASCII 0 Keyboard 0 Movement Mouse Keybinds 0 Fullscreen 1 Font 24/Smallcaps Map View 50x35 Zoom Use 0% Tactical HUD 0 Map Filters NONE Filters NONE Steam 1 RUN: 41fa3937-b8ad-472e-a9c6-abcaec2ce1cb